Cogmind - Beta 16.1 @@@ ROGUE MODE // 2026.04.14 @ 16:44:24 Player: skelll Result: Destroyed by G-47 Trooper with Particle Gun Performance ------------- Evolutions (2) 1000 Regions Visited (7) 1400 Robots Destroyed (67) 335 Value Destroyed (2205) 2205 Prototype IDs (27) 540 Alien Tech Used (0) 0 Bonus (449) 449 TOTAL SCORE: 5929 Bonus ------- Follower Combat Kills 149 Aligned with FarCom 300 Cogmind --------- Core Integrity 0/550 Matter 20/300 Energy 90/100 System Corruption 0% Temperature Warm (128) Movement Core (800) Ox15 Location -8/Materials Parts ------- > --- POWER (1) -------- (None) > --- PROPULSION (3) --- (None) > --- UTILITY (4) ------ High-capacity Storage Unit > --- WEAPON (3) ------- Grenade Launcher Makeshift Hammer > --- INVENTORY (20) --- Light Ion Engine Light Nuclear Core Light Nuclear Core Improved Heat Sink Improved Heat Sink High-capacity Matter Pod (200) Terrain Scanner ECM Suite Reaction Control System Mining Laser Heavy Hammer Peak State ------------ > --- POWER ------------ Light Ion Engine > --- PROPULSION ------- Wheel Armored Wheel > --- UTILITY ---------- Improved Heat Sink High-capacity Storage Unit Compact Battery > --- WEAPON ----------- Beam Rifle YOLO Cannon > --- INVENTORY -------- Light Nuclear Core Light Nuclear Core Improved Heat Sink Improved Heat Sink Improved Heat Sink High-capacity Matter Pod Terrain Scanner ECM Suite Medium Armor Plating EM Shotgun Beam Rifle Beam Rifle Heavy Assault Rifle Improved Light Cannon Grenade Launcher Grenade Launcher Rocket Launcher Rocket Launcher Mining Laser Makeshift Hammer [Rating: 37] Favorites ----------- Power Light Ion Engine Engine Light Ion Engine Power Core Light Nuclear Core Propulsion Armored Wheel Leg Improved Aluminum Leg Wheel Armored Wheel Utility High-capacity Storage Unit Device Improved Heat Sink Storage High-capacity Storage Unit Processor Targeting Computer Protection Light Armor Plating Weapon Beam Rifle Energy Gun Beam Rifle Energy Cannon YOLO Cannon Ballistic Gun Light Assault Rifle Ballistic Cannon Improved Light Cannon Launcher Rocket Launcher Special Weapon Mining Laser Impact Weapon Makeshift Hammer Special Melee Weapon Datajack Build | -11 -10 -10 -9 -9 -9 -8 -8 ------- Run | Yrd Mat Min Mat Min Exi Min Mat Slots Evolved 4 | . . . 2 . . . 2 Power . | . . . . . . . . Propulsion 1 | . . . . . . . 1 Utility 2 | . . . 1 . . . 1 Weapon 1 | . . . 1 . . . . Parts Attached 56 | 6 8 7 12 4 1 16 2 Power 7 | 1 1 . 2 2 . 1 . Engine 5 | 1 1 . 2 1 . . . Core 2 | . . . . 1 . 1 . Reactor . | . . . . . . . . Propulsion 11 | 2 2 2 1 1 . 3 . Treads . | . . . . . . . . Leg 3 | . . . . . . 3 . Wheel 8 | 2 2 2 1 1 . . . Hover . | . . . . . . . . Flight . | . . . . . . . . Utility 12 | 1 3 . 4 . . 3 1 Device 5 | . 1 . 2 . . 2 . Storage 3 | 1 1 . 1 . . . . Processor 1 | . 1 . . . . . . Hackware . | . . . . . . . . Protection 3 | . . . 1 . . 1 1 Artifact . | . . . . . . . . Weapon 26 | 2 2 5 5 1 1 9 1 Energy Gun 11 | 1 2 2 3 1 . 2 . Energy Cannon 1 | . . . . . 1 . . Ballistic Gun 2 | 1 . . . . . 1 . Ballistic Cannon 3 | . . . 1 . . 2 . Launcher 6 | . . 1 1 . . 3 1 Special Weapon 1 | . . 1 . . . . . Impact Weapon 1 | . . . . . . 1 . Slashing Weapon . | . . . . . . . . Piercing Weapon . | . . . . . . . . Special Melee Weapon 1 | . . 1 . . . . . Unidentified Prototypes . | . . . . . . . . Parts Lost 36 | . 2 5 4 3 . 11 11 Power 5 | . 1 . 1 1 . 1 1 Propulsion 8 | . . 2 . 1 . 3 2 Utility 6 | . . . 1 . . 3 2 Weapon 17 | . 1 3 2 1 . 4 6 Highest Loss Streak 11 | . 1 3 3 3 . 8 11 To Critical Strikes . | . . . . . . . . Average Backups 16 | 2 10 17 19 19 20 16 14 Power 4 | . 3 6 6 3 3 3 3 Propulsion . | 1 2 1 1 . . . . Utility 5 | . 1 6 6 7 7 6 6 Weapon 5 | . 1 3 4 7 10 7 5 Tool/Special . | . . . . . . . . Unused Backups 16 | . 4 . 1 2 . 1 8 Power 7 | . 1 . . 2 . 1 3 Propulsion 2 | . 2 . . . . . . Utility 4 | . . . . . . . 4 Weapon 3 | . 1 . 1 . . . 1 Tool/Special . | . . . . . . . . Average Slot Usage (%) 84 | . 97 97 96 99 98 61 54 Engine 8 | . 14 14 10 9 11 2 . Core 1 | . . . . 1 . 3 6 Leg 3 | . . . . . . 8 11 Wheel 16 | . 28 27 22 21 22 1 . Device 7 | . 6 . 11 11 11 6 5 Storage 14 | . 14 14 12 22 22 11 9 Processor 2 | . 5 14 2 . . . . Protection 1 | . . . 6 . . . 4 Energy Gun 16 | . 13 13 24 28 29 6 3 Energy Cannon 1 | . . . . . 1 2 . Ballistic Gun 4 | . 14 10 . . . 4 3 Ballistic Cannon 1 | . . . 2 . . 3 6 Launcher 2 | . . 1 2 4 . 3 5 Impact Weapon 1 | . . . . . . 4 2 Peak Build Rating 37 | 6 11 13 22 23 37 37 23 Average Rating 17 | 4 9 11 18 21 23 18 15 On Entrance 16 | . 6 11 13 22 21 37 19 Avg Prop Armor Cover (%) . | . . . . . . . . Naked Turns . | . . . . . . . . Heaviest Build 72 | 12 48 48 61 59 66 72 62 Greatest Support 32 | 32 32 24 24 24 22 26 26 Greatest Overweight (x) 21 | . 1 3 2 2 2 21 16 Average Overweight (x) 2 | . . 1 1 2 2 4 4 Largest Inventory Capacity 20 | 8 20 20 20 20 20 20 20 Average Capacity 19 | 6 15 20 20 20 20 20 20 Most Carried 20 | 4 17 19 20 20 20 20 16 Average Carried 16 | 2 10 17 19 19 19 16 13 Final Capacity 20 | 8 20 20 20 20 20 20 20 Final Carried 20 | 4 17 19 20 20 20 16 11 Class Distribution -------------------- 41% | Mutant 29% | Gunner 12% | Derelict-Skirmisher 9% | Skirmisher 7% | Tank Dominant Class ---------------- Mutant | -10/Materials Mutant | -10/Mines Tank | -9/Materials Gunner | -9/Mines Gunner | -9/Exiles Mutant | -8/Mines Mutant | -8/Materials Resources | -11 -10 -10 -9 -9 -9 -8 -8 ----------- Run | Yrd Mat Min Mat Min Exi Min Mat Matter Collected 1152 | 257 118 335 211 62 . 169 . Remotely . | . . . . . . . . Salvage Created 1965 | . 487 211 477 91 . 459 240 Parts 117 | . 34 11 37 3 . 22 10 Haulers Intercepted . | . . . . . . . . Recyclers Shooed . | . . . . . . . . Parts Field Recycled . | . . . . . . . . Retrieved Matter . | . . . . . . . . Parts Self-Destructed . | . . . . . . . . Prevented . | . . . . . . . . Parts Restored . | . . . . . . . . Kills | -11 -10 -10 -9 -9 -9 -8 -8 ------- Run | Yrd Mat Min Mat Min Exi Min Mat Combat Hostiles Destroyed 57 | . 10 5 13 8 . 12 9 Guns 34 | . 10 4 10 5 . 4 1 Cannons 3 | . . . 2 . . 1 . AOE 17 | . . 1 1 3 . 5 7 Classes Destroyed 12 | . 4 . 6 1 . 1 . Worker 1 | . . . 1 . . . . Builder 4 | . 2 . . . . 2 . Tunneler 3 | . . . 1 . . 2 . Recycler 1 | . . . 1 . . . . Operator 1 | . 1 . . . . . . Watcher 3 | . 2 . 1 . . . . Swarmer 9 | . . . 5 4 . . . Grunt 37 | . 10 5 4 1 . 11 6 Brawler 2 | . . . 1 . . . 1 Duelist 1 | . . . . . . 1 . Sentry 5 | . . . 3 . . . 2 Assembled 3 | . . . . 3 . . . Best Kill Streak 6 | . 4 2 6 4 . 6 6 Combat Bots Only 6 | . 4 2 5 4 . 3 6 Max Kills in Single Turn 3 | . 3 1 3 2 . 2 2 Gunslinging . | . . . . . . . . Exploded 2 | . . 1 1 2 . 1 2 Melee . | . . . . . . . . Uniques/NPCs Destroyed . | . . . . . . . . Combat | -11 -10 -10 -9 -9 -9 -8 -8 -------- Run | Yrd Mat Min Mat Min Exi Min Mat Hostile Shots Fired 418 | . 44 35 87 38 . 65 149 Missed 119 | . 11 6 31 9 . 28 34 Hits 299 | . 33 29 56 29 . 37 115 Melee 2 | . . . . . . 2 . Projectile 297 | . 33 29 56 29 . 35 115 AOE 1 | . . . 1 . . . . Critical Strikes 10 | . . 1 2 . . 3 4 Damage Taken 4508 | . 477 370 755 353 . 784 1769 Core 948 | . 98 61 85 60 . 94 550 Absorbed by Shields . | . . . . . . . . Ignored by Resistances 41 | . . . . . . . 41 Core Remaining (%) 48 | 100 . 36 . . . 10 . Volleys Fired 200 | . 41 33 51 20 1 41 13 Largest 3 | . 2 2 3 3 3 3 3 Hottest 212 | . 85 100 212 168 168 156 106 Shots Fired 366 | . 82 42 117 42 3 51 29 Gun 302 | . 82 38 95 40 3 33 11 Cannon 24 | . . . 5 . . 10 9 Launcher 25 | . . 2 4 2 . 8 9 Special 15 | . . 2 13 . . . . Kinetic 96 | . 41 19 5 . . 13 18 Thermal 218 | . 29 16 108 40 3 22 . Explosive 25 | . . 2 4 2 . 8 9 Electromagnetic 27 | . 12 5 . . . 8 2 Robot Hit Streak 20 | . 20 16 8 7 . 6 5 Robot Miss Streak 4 | . 3 2 3 4 . 3 3 Penetration Max . | . . . . . . . . Secondary Targets 3 | . 1 1 1 . . . . Max Gunslinging Chain 1 | . 1 1 1 . . . . Shots Hit Robots 205 | . 65 30 40 22 . 33 15 Core Hits 133 | . 33 12 26 10 . 27 25 Critical Kills 1 | . . . . . . 1 . Critical Parts Destroyed 1 | . . . . . . . 1 Critical Strikes 6 | . . . 2 1 . 2 1 Burn 3 | . . . 2 1 . . . Meltdown 1 | . . . . . . 1 . Blast 1 | . . . . . . 1 . Smash 1 | . . . . . . . 1 Melee Attacks 6 | . . 1 . . . 2 3 Impact 5 | . . . . . . 2 3 Slashing . | . . . . . . . . Piercing . | . . . . . . . . Sneak Attacks . | . . . . . . . . Combat Hostiles . | . . . . . . . . Follow-up Attacks . | . . . . . . . . Damage Inflicted 5702 | . 803 443 895 534 . 1935 1092 Guns 2296 | . 683 318 530 347 . 354 64 Cannons 403 | . . . 54 . . 192 157 Explosions 2899 | . 120 125 311 187 . 1309 847 Melee 104 | . . . . . . 80 24 Ramming . | . . . . . . . . Kinetic 741 | . 230 108 54 . . 154 195 Thermal 2577 | . 460 153 530 347 . 1087 . Explosive 2007 | . . 125 311 187 . 537 847 Electromagnetic 273 | . 113 57 . . . 77 26 Impact 104 | . . . . . . 80 24 Slashing . | . . . . . . . . Piercing . | . . . . . . . . Highest Corruption 2 | . 2 2 . . . . . Average Corruption 1 | . 1 2 . . . . . Corruption Purged . | . . . . . . . . Corruption Blocked . | . . . . . . . . Effects 13 | . 5 8 . . . . . Message Errors 4 | . 2 2 . . . . . Matter Fused 4 | . 1 3 . . . . . Heat Flow Errors 2 | . 1 1 . . . . . Energy Discharges 1 | . . 1 . . . . . Misfires 2 | . 1 1 . . . . . Overload Shots . | . . . . . . . . Overflow Damage 205 | . . . . . . 181 24 Projectiles 38 | . . . . . . 38 . Explosions 110 | . . . . . . 110 . Melee 57 | . . . . . . 33 24 Knockbacks 3 | . . . . . . 3 . Impact 2 | . . . . . . 2 . Kinetic 1 | . . . . . . 1 . Secondary . | . . . . . . . . Self-Inflicted Damage 212 | . 26 . . . . 147 39 Shots 5 | . 1 . . . . 2 2 Rammed . | . . . . . . . . Targets Rammed . | . . . . . . . . Kicked . | . . . . . . . . Crushed . | . . . . . . . . Highest Temperature 277 | . 223 277 273 194 57 54 259 Average Temperature 93 | . 89 87 96 83 33 30 141 Received Heat Transfer 2100 | . 255 228 246 147 . 351 873 Effects 1 | . . . . . . . 1 Interference 1 | . . . . . . . 1 Siege Activations . | . . . . . . . . Martial Activations . | . . . . . . . . Shielding Activations . | . . . . . . . . Robots Disrupted . | . . . . . . . . Combat Hostiles . | . . . . . . . . Robots Corrupted 2 | . . . . . . 1 1 Combat Hostiles 2 | . . . . . . 1 1 Parts Fried 1 | . . . . . . . 1 Impact Corruptions 3 | . . . . . . 2 1 Robots Melted 1 | . . . . . . 1 . Combat Hostiles 1 | . . . . . . 1 . Parts Melted 4 | . 1 . 1 2 . . . Heat Transferred 5208 | . 884 370 1481 962 . 1511 . Parts Sabotaged . | . . . . . . . . Parts Stolen . | . . . . . . . . Parts Stripped . | . . . . . . . . Power Chain Reactions 2 | . 2 . . . . . . Alert | -11 -10 -10 -9 -9 -9 -8 -8 ------- Run | Yrd Mat Min Mat Min Exi Min Mat Maximum Alert Level . | . . . . . . . . Low Security (%) 100 | 100 100 100 100 100 . 100 100 Level 1 . | . . . . . . . . Level 2 . | . . . . . . . . Level 3 . | . . . . . . . . Level 4 . | . . . . . . . . Level 5 . | . . . . . . . . High Security . | . . . . . . . . Max Security . | . . . . . . . . Peak Influence 199 | . 96 62 167 182 . 117 199 Initial 52 | . . . 11 52 . . 35 Average 37 | . 47 14 75 59 . 19 114 Influence Increases 2044 | . 350 248 538 180 . 432 296 Destroy 0b10 Robot/C 1220 | . 200 160 340 100 . 240 180 Destroy 0b10 Robot/NC 65 | . 25 . 20 . . 20 . Destroy Leader 246 | . 54 40 62 10 . 40 40 Allied During Kill 31 | . . 16 15 . . . . Successful Hack 35 | . 17 5 13 . . . . Disable Machine 120 | . . 15 . 45 . 30 30 Destroy Structure 222 | . 9 12 43 10 . 102 46 Lose Combat Pursuer 105 | . 45 . 45 15 . . . Influence Decreases 1853 | . 350 217 434 315 . 341 196 Entered New Map 159 | . . . 20 83 . . 56 Time Decay 1343 | . 330 177 334 202 . 270 30 Lost Part 291 | . 20 20 40 30 . 71 110 Lost Ally 60 | . . 20 40 . . . . Squads Dispatched 8 | . 2 . 2 . . . 4 Investigation 1 | . . . 1 . . . . Extermination . | . . . . . . . . Reinforcement 5 | . 2 . 1 . . . 2 Assault . | . . . . . . . . Garrison 2 | . . . . . . . 2 Intercept . | . . . . . . . . Searches Triggered . | . . . . . . . . Construction Impeded 1 | . . . . . . . 1 Haulers Reinforced . | . . . . . . . . Active Scanning Responses . | . . . . . . . . Cargo Convoy Interrupts . | . . . . . . . . Stealth | -11 -10 -10 -9 -9 -9 -8 -8 --------- Run | Yrd Mat Min Mat Min Exi Min Mat Distress Signals 8 | . 4 . 2 . . . 2 Communications Jammed . | . . . . . . . . Distress Signals . | . . . . . . . . Times Spotted 86 | . 19 8 27 9 . 10 13 Peak Tracking Total 8 | . 4 2 5 4 . 3 8 Tactical Retreats 5 | . 3 . 1 1 . . . Traps | -11 -10 -10 -9 -9 -9 -8 -8 ------- Run | Yrd Mat Min Mat Min Exi Min Mat Traps Triggered 3 | . 2 . 1 . . . . Indirectly . | . . . . . . . . Trap Hack Attempts . | . . . . . . . . Triggered . | . . . . . . . . Disarmed . | . . . . . . . . Reprogrammed . | . . . . . . . . Reused . | . . . . . . . . Traps Extracted . | . . . . . . . . Installed . | . . . . . . . . Triggered . | . . . . . . . . Machines | -11 -10 -10 -9 -9 -9 -8 -8 ---------- Run | Yrd Mat Min Mat Min Exi Min Mat Machines Disabled 9 | . . 1 1 3 . 2 2 Max in Single Turn 2 | . . 1 1 2 . 1 2 Machines Repaired . | . . . . . . . . Machines Dismantled . | . . . . . . . . Machines Sabotaged . | . . . . . . . . Overloaded Fab Kills . | . . . . . . . . Hacking | -11 -10 -10 -9 -9 -9 -8 -8 --------- Run | Yrd Mat Min Mat Min Exi Min Mat Machines Accessed 14 | . 4 1 6 . 3 . . Terminals 9 | . 3 1 5 . . . . Fabricators . | . . . . . . . . Repair Stations . | . . . . . . . . Recycling Units 1 | . 1 . . . . . . Scanalyzers 1 | . . . 1 . . . . Garrison Access . | . . . . . . . . Total Hacks 32 | . 9 4 13 . 6 . . Successful 20 | . 6 1 7 . 6 . . Failed 12 | . 3 3 6 . . . . Catastrophic 2 | . 1 . 1 . . . . Database Lockouts . | . . . . . . . . Manual 1 | . . . . . 1 . . Terminals 24 | . 8 4 12 . . . . Fabricators . | . . . . . . . . Repair Stations . | . . . . . . . . Recycling Units 1 | . 1 . . . . . . Scanalyzers 1 | . . . 1 . . . . Garrison Access . | . . . . . . . . Terminal Hacks 18 | . 5 1 6 . 6 . . Record 5 | . . . . . 5 . . Prototype ID Bank 2 | . 1 . 1 . . . . Level Access Points 1 | . . . 1 . . . . Emergency Access Points 1 | . 1 . . . . . . Locate Traps 2 | . 1 . 1 . . . . Dispatch Records 1 | . . . 1 . . . . Reinforcement Status 1 | . . . 1 . . . . Hauler Manifests 1 | . . . 1 . . . . Registered Components 1 | . 1 . . . . . . Zone Layout 2 | . 1 1 . . . . . Proto ID Catalog 1 | . . . . . 1 . . Fabricator Hacks . | . . . . . . . . Repair Station Hacks . | . . . . . . . . Recycling Unit Hacks 1 | . 1 . . . . . . Report Inventory 1 | . 1 . . . . . . Scanalyzer 1 | . . . 1 . . . . Retrieve Study 1 | . . . 1 . . . . Garrison Access Hacks . | . . . . . . . . Unauthorized Hacks . | . . . . . . . . Terminals . | . . . . . . . . Fabricators . | . . . . . . . . Repair Stations . | . . . . . . . . Recycling Units . | . . . . . . . . Scanalyzers . | . . . . . . . . Garrison Access . | . . . . . . . . Data Cores Recovered 1 | . 1 . . . . . . Used . | . . . . . . . . Hacking Detections 8 | . 3 1 4 . . . . Full Trace Events 3 | . 1 . 2 . . . . Feedback Events . | . . . . . . . . Feedback Blocked . | . . . . . . . . Robot Schematics Acquired . | . . . . . . . . Robots Built . | . . . . . . . . Authchips . | . . . . . . . . Time . | . . . . . . . . Total Robot Build Rating . | . . . . . . . . Part Schematics Acquired . | . . . . . . . . Parts Built . | . . . . . . . . Authchips . | . . . . . . . . Time . | . . . . . . . . Total Part Build Rating . | . . . . . . . . Part Studies Acquired 1 | . . . 1 . . . . Parts Repaired . | . . . . . . . . Time . | . . . . . . . . Parts Recycled . | . . . . . . . . Recycled Matter . | . . . . . . . . Retrieved Matter . | . . . . . . . . Retrieved Components . | . . . . . . . . Parts Scanalyzed . | . . . . . . . . Part Schematics Acquired . | . . . . . . . . Parts Damaged . | . . . . . . . . Bothacking | -11 -10 -10 -9 -9 -9 -8 -8 ------------ Run | Yrd Mat Min Mat Min Exi Min Mat Used RIF Installer . | . . . . . . . . Robots Hacked 1 | . . 1 . . . . . Non-combat . | . . . . . . . . Combat 1 | . . 1 . . . . . Robot Hacks Applied 1 | . . 1 . . . . . parse_system 1 | . . 1 . . . . . Relay Couplers Released . | . . . . . . . . Fabnet Peak Effective % . | . . . . . . . . Robots Rewired . | . . . . . . . . Allies Hacked . | . . . . . . . . Hacks Repelled . | . . . . . . . . Allies | -11 -10 -10 -9 -9 -9 -8 -8 -------- Run | Yrd Mat Min Mat Min Exi Min Mat Total Allies 3 | . . 3 . . . . . Largest Group 3 | . . 3 2 . . . . Highest-Rated Group 40 | . . 40 24 . . . . Highest-Rated Ally 16 | . . 16 16 . . . . Total Orders . | . . . . . . . . Ally Attacks 31 | . . 8 23 . . . . Total Damage 366 | . . 81 285 . . . . Kills 7 | . . 3 4 . . . . Allies Corrupted . | . . . . . . . . Allies Melted . | . . . . . . . . Intel | -11 -10 -10 -9 -9 -9 -8 -8 ------- Run | Yrd Mat Min Mat Min Exi Min Mat Active Infowar (turns) 583 | . 339 . 244 . . . . Terrain 583 | . 339 . 244 . . . . Robot Analysis Total . | . . . . . . . . Derelict Logs Recovered 5 | . . 2 . 3 . . . Drone Launches . | . . . . . . . . Drone Recoveries . | . . . . . . . . Exploration | -11 -10 -10 -9 -9 -9 -8 -8 ------------- Run | Yrd Mat Min Mat Min Exi Min Mat Turns Passed 5589 | 62 776 650 746 620 729 1934 72 Spaces Moved 3156 | 50 566 508 430 463 626 507 6 Core 103 | 1 . . . . . 101 1 Treads . | . . . . . . . . Legs 300 | . . . . . . 295 5 Wheels 2753 | 49 566 508 430 463 626 111 . Hover . | . . . . . . . . Flight . | . . . . . . . . Fastest Speed 50 | 50 90 105 105 115 115 115 260 Average Speed 150 | 99 102 105 119 116 115 354 381 Slowest Speed 1100 | 100 105 135 120 120 115 1100 850 Overloaded Moves . | . . . . . . . . Propulsion Burnouts . | . . . . . . . . Robots Hopped . | . . . . . . . . Potential Cave-ins . | . . . . . . . . Cave-ins Triggered . | . . . . . . . . Exploration Rate (%) 58 | 3 71 98 43 80 93 74 5 Regions Visited 7 Branch Regions 4 Pre-discovered Areas 3 | . . 1 . 1 1 . . Known Exits Taken 1 | . . . . . . 1 . Unknown Exits Taken 6 | 1 1 1 1 1 1 . . Scrap Searched 5 | . . 1 . 3 . 1 . Spaces Dug 13 | . . . 13 . . . . Terrain Destroyed 302 | . 9 20 42 13 . 163 55 Melee . | . . . . . . . . Projectile 18 | . . . 13 . . 4 1 AOE 284 | . 9 20 29 13 . 159 54 Terrain Rammed . | . . . . . . . . Walls Destroyed . | . . . . . . . . Machines Disabled . | . . . . . . . . Actions | -11 -10 -10 -9 -9 -9 -8 -8 --------- Run | Yrd Mat Min Mat Min Exi Min Mat Total 3631 | 59 694 582 545 504 635 584 28 Wait 112 | . 52 22 20 7 . 11 . Move 3149 | 49 565 507 429 462 625 506 6 Hop . | . . . . . . . . Pick Up 54 | 4 19 6 14 7 2 2 . Fast Attach 18 | 6 1 1 2 . 1 6 1 Attach 42 | . 3 8 13 3 . 10 5 Detach 15 | . 1 4 3 . 2 5 . Swap 7 | . 4 . 2 1 . . . Drop 28 | . 8 . 11 4 4 1 . Fire 200 | . 41 33 51 20 1 41 13 Melee 6 | . . 1 . . . 2 3 Ram . | . . . . . . . . Kick . | . . . . . . . . Crush . | . . . . . . . . Escape Stasis . | . . . . . . . . Rewire . | . . . . . . . . Trap . | . . . . . . . . Miscellaneous . | . . . . . . . . Route ------- -11/Scrapyard -10/Materials (discovered 3 exits: *Mat x2 / *Min) -10/Mines (discovered 2 exits: *Mat x2) -9/Materials (discovered 4 exits: Mat x3 / [*Min]) -9/Mines (discovered 3 exits: *Mat x2 / *Exi) -9/Exiles (discovered 2 exits: [*Min x2]) -8/Mines -8/Materials (discovered 1 exit: Fac) History --------- Turn | Location | Event 14 | -11/Scrapyard | Discovered new exit (range 15) 63 | -11/Scrapyard | Entered Materials 308 | -10/Materials | Build established: Mutant 538 | -10/Materials | Discovered new exit (range 15) 786 | -10/Materials | Discovered new exit (range 14) 786 | -10/Materials | Discovered new exit (range 15) 839 | -10/Materials | Entered Mines 910 | -10/Mines | Assisted by bots powering up and referring to "LRC-V3" 996 | -10/Mines | Lost 3 parts (1n2w) 1204 | -10/Mines | Core integrity fell below 50% 1336 | -10/Mines | Learned Materials emergency access door positions 1401 | -10/Mines | Learned location of Zion (-6) 1427 | -10/Mines | Discovered new exit (range 12) 1478 | -10/Mines | Discovered new exit (range 5) 1489 | -10/Mines | Entered Materials 1489 | -9/Materials | Accompanied by 2 allies 1489 | -9/Materials | Evolved 2 slots: Utility x1, Weapon x1 1713 | -9/Materials | Lost 3 parts (1u2w) 1982 | -9/Materials | Identified exit to Materials 2017 | -9/Materials | Build established: Tank 2059 | -9/Materials | Discovered new exit (range 5) 2235 | -9/Materials | Entered Mines 2306 | -9/Mines | Learned location of 1 exit from Materials 2316 | -9/Mines | Discovered exit to Materials (range 7) 2417 | -9/Mines | Discovered exit to Materials (range 12) 2420 | -9/Mines | Received a Rocket Launcher from a helpful Derelict 2432 | -9/Mines | Assembled infested the area 2441 | -9/Mines | Build established: Gunner 2457 | -9/Mines | Learned location of Recycling (-7) 2516 | -9/Mines | Deemed a non-threat by the Exiles lab entrance 2517 | -9/Mines | Discovered new exit (range 5) 2527 | -9/Mines | Lost 3 parts (1p1n1w) 2704 | -9/Mines | YI-UF0 nonchalantly dropped a Grenade Launcher on the ground 2736 | -9/Mines | A weapon hastily lodged in a ceiling crevice suddenly fell to the ground 2855 | -9/Mines | Entered Exiles 2882 | -9/Exiles | Discovered new exit (range 14) 2908 | -9/Exiles | Met 8R-AWN 2942 | -9/Exiles | Met EX-HEX 3002 | -9/Exiles | Met EX-DEC 3092 | -9/Exiles | Discovered new exit (range 10) 3177 | -9/Exiles | Visited The Gauntlet 3354 | -9/Exiles | Met EX-BIN 3388 | -9/Exiles | Aligned with FarCom system 3389 | -9/Exiles | Given EX-Vault access code 3442 | -9/Exiles | Opened EX-Vault 3467 | -9/Exiles | Found YOLO Cannon 3495 | -9/Exiles | Warned to stay clear of 0b10 Research branches 3584 | -9/Exiles | Left Exiles lab with YOLO Cannon 3584 | -9/Exiles | Entered Mines 3652 | -8/Mines | Discovered exit to Materials (range 9) 3778 | -8/Mines | Lost 3 parts (2n1u) 3868 | -8/Mines | Build established: Skirmisher 4083 | -8/Mines | YOLO Cannon suddenly exploded 4084 | -8/Mines | Core integrity fell below 50% 4105 | -8/Mines | Core integrity fell below 20% 4133 | -8/Mines | Lost 8 parts (1p1n2u4w) 4393 | -8/Mines | Build established: Mutant 4819 | -8/Mines | Found DCF Scrap (13 items) 5135 | -8/Mines | Build established: Derelict-Skirmisher 5518 | -8/Mines | Entered Materials 5518 | -8/Materials | Evolved 2 slots: Propulsion x1, Utility x1 5519 | -8/Materials | Identified exit to Factory 5581 | -8/Materials | Core integrity fell below 50% 5585 | -8/Materials | Core integrity fell below 20% 5590 | -8/Materials | Destroyed by G-47 Trooper with Particle Gun Last Messages --------------- 05576_ Flak Cannon destroyed. 05578_ The unstable cave ceiling collapses. 05578_ Critical hit (Burn: +37). 05580_ U-05 Engineer builds a Wall. 05583_ Y-45 Defender destroyed. 05583_ Critical hit (Burn: +37). 05583_ U-05 Engineer builds a Wall. 05586_ Y-45 Defender suffers critical hit (Smash). 05586_ Destroyed Lgt. Treads. 05586_ Y-45 Defender system corrupted by crushing effect. 05587_ Y-45 Defender system terminally corrupted. 05587_ Heat Sink fried. 05587_ U-05 Engineer lays Concrete. 05589_ U-05 Engineer builds a Wall. 05589_ G-47 Trooper destroyed. 05590_ U-05 Engineer lays Concrete. 05590_ Critical hit (Burn: +37). Map ----- +----------------------------------------------------+ | ?????????????????????????????????????????????????? | | ?????????????????????????????????????????????????? | | ?????????????????????????????????????????????????? | | ?????????????????????????????????????????????????? | | ?????????????????????????????????????????????????? | | ?????????????????????????????????????????????????? | | ?????????????????????????????????????????????????? | | ?????????????????????????????????????????????????? | | ?????????????????????????????????????????????????? | | ?????????????????????????????????????????????????? | | ???????????????????????? ?????????????????????? | | ???????????????????????? ???????????????????? | | ???????????????????????#!%[ ?+#????????????????? | | ???????????????????????# = ???????????????? | | ??????????????????????? #u # "???????????????? | | ??????????????????????? # # "???????????????? | | ??????????????????????## % ????????????????? | | ??????????????????????# ?????????????????? | | ??????????????????????# #####?????????????? | | ??????????????????????# # ! [ ??????????????? | | ??????????????+##########mY % ???????????????? | | ?????????????? u """???????????????? | | ??????????????? ""?????????????????? | | ??????????????? ???????????????????? | | ???????????????"" "" % #????????????????????? | | ?????????????????" """ [@% #????????????????????? | | ???????????????""" "" #????????????????????? | | ???????????????""" = ####????????????????? | | ??????????????""" g=%[%= #????????????????? | | ????????????? =*g #????????????????? | | ???????????? %= #????????????????? | | ????????????####### # "%" #####????????????????? | | ??????????????????# "G"###????????????????????? | | ??????????????????### " ??????????????????????? | | ????????????????????## # #??????????????????????? | | ?????????????????????###?#???????????????????????? | | | | | | | | | | | | | | | | | | | | | | | | | | | | | +----------------------------------------------------+ Best States ------------- Heat Dissipation 45 Energy Generation 14 Energy Capacity 465 Matter Stores 300 Matter Capacity 300 Sight Range 16 Terrain Scan Range 14 Terrain Scan Density 10 Armor Coverage 225 Resistance: KI 20 Evasion (%) 42 Targeting Accuracy 5 Item Schematics ----------------- None Robot Schematics ------------------ None Fabricated ------------ Nothing Repaired ---------- Nothing Studied --------- Lgt. Cannon | -9/Materials | Hacked Alien Tech Used ----------------- None Achievements -------------- Hydra Remodeling Resistances Are Futile Sixth Sense YOLO Challenges ------------ None Game ------ Seed NetworkJammingNeutralizer Manual? 0 Play Time 01:15:11 Cumulative 17.2 hours Start 2026.04.14 @ 01:04:10 End 2026.04.14 @ 16:44:24 Sessions 3 Manual Loads 0 Difficulty Rogue Special Mode None Game No. 30 Rogue 30 Adventurer 0 Explorer 0 Win Type - Total 0 Types 0/0/0/0/0/0/0/0/0/0 Lore% 15 Gallery% 14 Achievement% 11 Wizard Run 0 Options --------- Layout 1 ASCII 0 Keyboard 1 Movement Arrows Keybinds 0 Fullscreen 2 Font 24/Smallcaps Map View 50x35 Zoom Use 0% Tactical HUD 1 Map Filters NONE Filters NONE Steam 1 RUN: 0f8faabd-c312-44fb-8df6-b20f2ad90e4c